bitfinex/quotes_ETHUSD_20260202
["timestamp","ask_amount","ask_price","bid_price","bid_amount"]
[1769996989782,0.59883677,2296.0,2295.1,1.08927715]
[1769996991519,1.08878904,2296.2,2295.1,1.08927715]
[1769996991725,4.35502133,2296.5,2295.1,1.08927715]
[1769996991900,3.29334674,2296.4,2295.1,1.08927715]
[1769996992095,0.01324474,2296.2,2294.9,0.001]
[1769996992402,0.01324474,2295.6,2294.3,0.913]
[1769996992703,0.01324474,2295.9,2295.0,1.08929433]
[1769996992704,1.16880136,2295.9,2295.0,1.08929433]
[1769996992914,4.35502133,2296.5,2295.1,0.913]
[1769996993124,0.92743417,2296.4,2295.1,0.913]
[1769996993437,4.35502133,2296.5,2295.1,0.913]
[1769996993599,1.08870792,2296.3,2295.3,0.001]
[1769996994219,1.69009625,2296.4,2295.3,0.001]
[1769996994438,1.08868138,2296.4,2295.3,0.001]
[1769996994598,1.08864978,2296.5,2295.3,0.001]
[1769996995203,1.08864978,2296.5,2295.4,0.913]
[1769996995832,1.08864978,2296.5,2295.5,1.08908734]
[1769996996626,0.57051423,2296.6,2295.5,1.08908734]
[1769996996912,1.65908524,2296.6,2295.5,2.16066595]
[1769996997327,1.65908524,2296.6,2295.5,1.08908734]
[1769996997525,1.15555662,2296.9,2295.5,14.57179206]
[1769996997727,5.563018,2296.8,2295.5,13.48270472]
[1769996997930,1.0885657,2296.6,2295.6,0.913]
[1769996998301,5.3953,2296.5,2295.3,0.001]
[1769996998528,1.78592973,2296.4,2295.5,1.08904211]
[1769996998736,0.92907954,2296.3,2295.5,1.08904211]
[1769996998936,1.0885657,2296.6,2295.6,1.08903661]
[1769996999231,7.118861,2296.5,2295.3,0.001]
[1769996999542,0.92911535,2296.4,2295.3,1.09017294]
[1769996999922,0.92911535,2296.3,2295.3,0.001]
[1769997000312,1.08855669,2296.7,2295.4,13.49594946]
[1769997000513,1.08855669,2296.7,2295.4,13.48270472]
[1769997000705,1.08855669,2296.7,2295.3,0.001]
[1769997001104,1.08855669,2296.7,2295.3,14.39670472]
[1769997001306,1.0895085,2297.0,2295.5,13.49594946]
[1769997001612,1.59041166,2296.9,2295.6,13.48270472]
[1769997001827,0.65983979,2296.9,2295.4,0.913]
[1769997002039,5.72589091,2296.8,2295.5,2.00208734]
[1769997002225,5.72589091,2296.8,2295.1,4.35694324]
[1769997002226,6.06184512,2296.7,2295.3,4.35666783]
[1769997002514,0.93071812,2296.6,2295.4,1.08909771]
[1769997002725,1.37339445,2296.5,2295.4,1.08909771]
[1769997002929,1.37339445,2296.5,2295.4,14.57180243]
[1769997003131,1.74829726,2296.9,2295.6,13.48270472]
[1769997003321,1.08950555,2297.0,2295.7,0.913]
[1769997003525,1.08947629,2297.0,2295.7,14.39570472]
[1769997003947,0.0011,2297.0,2295.9,13.49594946]
[1769997004149,0.0011,2297.0,2296.3,13.48270472]
[1769997004321,0.0011,2297.2,2296.4,2.26259495]
[1769997004519,0.0011,2297.2,2295.8,14.57164975]
[1769997004846,0.0011,2297.2,2295.8,15.48464975]
[1769997005544,0.0011,2297.2,2295.8,15.49789449]
[1769997005749,0.0011,2297.2,2296.0,13.48270472]
[1769997005951,0.0011,2297.2,2296.2,14.57146005]
[1769997007164,0.0011,2297.2,2296.3,0.913]
[1769997008048,0.0011,2297.2,2296.4,1.08866051]
[1769997008249,0.0011,2297.2,2296.3,2.001673]
[1769997008450,0.0011,2297.0,2296.3,2.001673]
[1769997010257,0.0011,2297.0,2296.3,2.63733629]
[1769997010461,0.0011,2297.2,2296.4,0.01324474]
[1769997010757,0.0011,2297.2,2296.3,15.58670235]
[1769997010758,1.08807385,2297.7,2296.3,2.63733629]
[1769997010956,1.08807385,2297.7,2296.3,2.001673]
[1769997011159,0.01324474,2297.5,2296.3,2.001673]
[1769997011327,4.96355974,2297.4,2296.3,2.001673]
[1769997011533,0.01324474,2297.4,2296.3,2.001673]
[1769997011734,0.01324474,2297.6,2296.3,2.001673]
[1769997012066,0.01324474,2297.4,2296.0,1.0888264]
[1769997012273,0.01324474,2296.7,2295.1,4.358084]
[1769997012433,0.01324474,2296.7,2295.1,1.09025398]
[1769997012434,0.01324474,2296.2,2295.1,1.09025398]
[1769997012633,0.01324474,2296.0,2295.1,0.001]
[1769997012833,0.40337716,2296.0,2295.1,0.001]
[1769997013146,0.28773242,2296.0,2295.4,1.08910558]
[1769997013348,0.1024,2296.3,2295.2,1.08920045]
[1769997013554,0.1024,2296.3,2295.2,1.08922371]
[1769997013853,0.1024,2296.5,2295.1,0.001]
[1769997014041,9.66548344,2296.4,2295.2,1.08922572]
[1769997014239,1.08875533,2296.2,2295.1,0.001]
[1769997014443,1.06469967,2296.1,2295.1,0.001]
[1769997014666,6.52504748,2296.7,2295.1,0.001]
[1769997014667,1.1909657,2296.6,2295.1,0.001]
[1769997014882,5.26709086,2296.7,2295.1,12.95036606]
[1769997014883,2.00153944,2296.7,2295.1,12.95036606]
[1769997015761,1.08837614,2297.1,2295.3,12.93612132]
[1769997015943,0.22439328,2297.0,2295.7,12.93612132]
[1769997016146,1.08831202,2297.2,2295.9,12.93612132]
[1769997016345,1.19053928,2297.5,2296.0,1.08885017]
[1769997016549,0.9281795,2297.4,2296.0,1.08885017]
[1769997016858,1.19053928,2297.5,2296.0,1.08885017]
[1769997017057,4.1340525,2297.4,2296.0,1.08885017]
[1769997017254,2.91291918,2297.3,2296.0,1.66992572]
[1769997017462,0.53245918,2297.3,2296.0,1.66992572]
[1769997017658,1.19053928,2297.5,2296.0,1.66992572]
[1769997017977,5.49981334,2297.4,2296.0,1.66992572]
[1769997018174,1.19053928,2297.5,2296.0,1.66992572]
[1769997018474,4.76976995,2297.4,2296.0,14.60604704]
[1769997018675,0.59603092,2297.3,2296.1,1.29361213]
[1769997018876,1.19053928,2297.5,2296.1,1.29361213]
[1769997019076,0.92814501,2297.4,2296.1,1.29361213]
[1769997019255,1.19053928,2297.5,2296.1,1.29361213]
[1769997019451,1.08814093,2297.5,2296.1,14.22973345]
[1769997019769,1.08788828,2298.1,2296.6,12.94936606]
[1769997019963,0.54391906,2298.0,2296.7,14.43019687]
[1769997020678,1.08794986,2297.9,2296.8,1.08847091]
[1769997020892,1.63185775,2298.0,2296.8,1.08847091]
[1769997021100,4.46600475,2298.7,2296.8,1.08847091]
[1769997021101,1.08761855,2298.6,2297.0,12.94936606]
[1769997021382,1.08761855,2298.6,2297.2,12.94936606]
[1769997021587,0.01324474,2299.1,2297.4,12.94936606]
[1769997021754,0.01324474,2298.5,2297.4,12.93612132]
[1769997021954,0.01324474,2298.4,2297.5,2.20661213]
[1769997022279,0.01324474,2298.5,2297.5,0.913]
[1769997022487,0.0011,2298.3,2297.6,1.08809192]
[1769997022800,0.0011,2298.3,2297.6,14.02421324]
[1769997022952,0.0011,2298.3,2297.6,1.08809192]
[1769997023153,0.0011,2298.3,2297.5,2.00110522]
[1769997023586,1.08751174,2298.9,2297.5,16.00786644]
[1769997024254,1.08736861,2299.2,2297.5,16.00786644]
[1769997024454,1.10056723,2299.3,2297.5,16.00786644]
[1769997024703,0.01324474,2298.8,2297.5,15.09486644]
[1769997024894,0.01324474,2298.8,2297.5,1.08813612]
[1769997024895,0.01324474,2298.5,2297.5,1.08813612]
[1769997025056,13.59278753,2299.1,2297.5,1.08813612]
[1769997025401,0.913,2299.1,2297.5,14.02425744]
[1769997025603,0.01324474,2298.9,2297.5,14.02425744]
[1769997025900,0.01324474,2298.8,2297.5,14.02425744]
[1769997026404,0.92624474,2299.1,2297.5,14.02425744]
[1769997026572,0.01324474,2299.0,2297.5,14.02425744]
[1769997026772,1.08745663,2299.0,2297.5,14.02425744]
[1769997026968,0.01324474,2298.9,2297.5,14.02425744]
[1769997027170,0.01324474,2298.8,2297.5,14.02425744]
[1769997027607,0.01324474,2298.5,2297.5,1.08813612]
[1769997027768,0.01324474,2298.5,2297.5,2.00013612]
[1769997028095,0.01324474,2298.7,2297.5,2.00013612]
[1769997028301,0.11564474,2298.9,2297.5,2.00013612]
[1769997028519,0.57116815,2298.9,2297.6,12.93612132]
[1769997028722,1.08761855,2298.6,2297.5,2.00013612]
[1769997028886,1.08761855,2298.6,2297.5,1.08813612]
[1769997029091,1.10086329,2298.6,2297.5,2.00013612]
[1769997029326,1.08761855,2298.6,2297.5,2.00013612]
[1769997029625,1.08761855,2298.6,2297.3,1.08818812]
[1769997029626,0.01324474,2298.4,2297.3,1.08818812]
[1769997029796,0.01324474,2298.3,2297.5,1.08813283]
[1769997029989,0.54513335,2298.5,2297.5,1.08813283]
[1769997030192,0.912,2298.9,2297.5,1.08813283]
[1769997030193,1.087603,2298.7,2297.5,1.08813283]
[1769997030419,1.08738201,2299.1,2297.5,14.02425415]
[1769997030622,4.3485108,2299.7,2297.8,0.01324474]
[1769997030793,0.54356091,2299.6,2298.1,12.94936606]
[1769997030991,1.08705104,2299.8,2298.1,12.94936606]
[1769997031189,1.08705104,2299.8,2298.7,0.01324474]
[1769997031403,0.0011,2299.9,2299.1,0.01324474]
[1769997031624,0.0011,2300.1,2299.5,0.01324474]
[1769997032113,1.08801718,2300.1,2299.2,0.912]
[1769997032420,0.97942913,2300.1,2299.2,0.912]
[1769997032724,4.34595374,2301.0,2299.2,0.912]
[1769997032725,0.0011,2301.1,2299.4,14.0366062]
[1769997032903,0.1024,2300.9,2299.6,0.01324474]
[1769997033092,1.08648413,2301.0,2299.5,12.93612132]
[1769997033288,1.08648413,2301.0,2299.3,4.34896059]
[1769997033289,0.01324474,2300.7,2299.3,1.08727995]
[1769997033499,0.11564474,2300.9,2299.4,0.54364297]
[1769997033704,0.1024,2300.7,2299.4,0.54364297]
[1769997034107,0.01324474,2300.1,2298.1,12.93612132]
[1769997034302,0.01324474,2299.8,2298.2,1.99978452]
[1769997034502,0.11564474,2299.9,2298.6,1.08757303]
[1769997034503,1.0144,2299.9,2298.6,1.08757303]
[1769997034715,1.08714559,2299.6,2298.3,1.08776051]
[1769997035122,2.45649076,2299.8,2298.3,14.03712657]
[1769997035400,0.0011,2299.9,2298.7,12.93612132]
[1769997035595,0.0011,2299.9,2298.3,1.08776051]
[1769997035596,3.000162,2299.8,2298.3,1.08776051]
[1769997035809,0.0011,2299.9,2298.4,0.912]
[1769997036121,4.145861,2299.8,2298.4,0.912]
[1769997036625,0.01324474,2299.6,2298.2,0.912]
[1769997036923,1.08724014,2299.4,2298.0,13.84812132]
[1769997037139,0.1024,2299.7,2298.0,13.84812132]
[1769997037298,1.08714559,2299.6,2298.2,12.93612132]
[1769997037824,0.0011,2299.9,2298.2,12.94936606]
[1769997038029,1.08705104,2299.8,2298.4,13.77158871]
[1769997038739,1.08705104,2299.8,2298.4,14.68358871]
[1769997038937,1.08810378,2299.9,2298.5,1.57621693]
[1769997039447,1.08810378,2299.9,2298.5,15.34780564]
[1769997040300,0.0011,2299.9,2298.5,15.34780564]
[1769997040752,0.0011,2299.9,2298.5,1.57621693]
[1769997041057,0.01434474,2299.9,2298.6,0.912]
[1769997041330,0.55935768,2299.9,2298.6,0.912]
[1769997041935,0.54611294,2299.9,2298.6,0.912]
[1769997042427,0.01324474,2299.8,2298.6,0.912]
[1769997043150,0.01324474,2299.8,2298.6,1.99960624]
[1769997043151,1.08708461,2299.8,2298.6,1.99960624]
[1769997043303,1.08708461,2299.8,2298.7,0.68388045]
[1769997043998,1.63314427,2299.9,2298.7,0.68388045]
[1769997044239,1.08813133,2299.9,2298.7,14.45546916]
[1769997044898,0.0011,2299.9,2298.8,1.08752392]
[1769997045099,0.0011,2299.9,2298.8,14.85911263]
[1769997045536,0.0011,2300.1,2298.9,13.77158871]
[1769997045726,0.0011,2300.1,2298.8,1.08752392]
[1769997045919,0.54463793,2300.1,2298.9,0.61215001]
[1769997046128,0.01324474,2300.0,2298.7,1.77142897]
[1769997046443,0.54463793,2300.1,2298.7,15.54301768]
[1769997046811,0.01324474,2300.0,2298.7,0.68388045]
[1769997047010,1.08700378,2299.9,2298.7,0.68388045]
[1769997047219,1.08700378,2299.9,2298.7,1.77143759]
[1769997047432,0.54482636,2299.8,2298.8,0.7033746]
[1769997047652,1.08700378,2299.9,2298.8,0.7033746]
[1769997048118,1.10024852,2299.9,2298.6,2.00058753]
[1769997048322,1.10134852,2299.9,2298.6,0.913]
[1769997048522,0.01324474,2299.4,2297.7,13.14005586]
[1769997048723,0.01324474,2299.4,2297.7,1.31533006]
[1769997048724,0.01324474,2299.0,2297.7,1.31533006]
[1769997048920,1.10081597,2298.7,2297.4,0.001]
[1769997049140,1.08757123,2298.7,2297.4,0.001]
[1769997049342,1.10081597,2298.7,2297.4,0.001]
[1769997049543,1.08757123,2298.7,2297.4,0.001]
[1769997049819,0.01324474,2298.4,2297.4,0.001]
[1769997050553,0.01324474,2298.5,2297.4,0.001]
[1769997050859,0.01324474,2298.4,2297.4,0.001]
[1769997051155,1.08776051,2298.3,2297.4,0.001]
[1769997051352,0.54520473,2298.2,2297.4,0.001]
[1769997051863,0.54520473,2298.2,2297.0,0.001]
[1769997051864,0.11564474,2298.1,2297.0,0.001]
[1769997052024,0.01324474,2297.9,2297.0,0.001]
[1769997052955,1.08799721,2297.8,2297.0,0.001]
[1769997053158,2.06981919,2297.8,2297.0,0.001]
[1769997054756,2.08306393,2297.8,2296.8,0.001]
[1769997054962,2.06981919,2297.8,2296.8,0.001]
[1769997055124,1.08794986,2297.9,2296.8,0.001]
[1769997057263,1.08793616,2298.0,2296.8,13.14105586]
[1769997057462,5.26346625,2298.1,2296.8,13.14105586]
[1769997057463,1.0878916,2298.1,2296.8,13.14105586]
[1769997057669,1.08784316,2298.2,2296.8,13.14105586]
[1769997057959,4.35084061,2298.5,2296.8,13.14105586]
[1769997058259,4.35084061,2298.5,2297.0,13.14005586]
[1769997058659,1.08766586,2298.5,2297.0,13.14005586]
[1769997058963,1.08747661,2298.9,2297.0,13.1533006]
[1769997059148,1.08747661,2298.9,2297.1,1.08832876]
[1769997059350,0.54505976,2298.8,2297.2,14.61131348]
[1769997060174,1.08743028,2299.0,2297.2,14.61131348]
[1769997060466,1.08728743,2299.3,2297.7,13.14005586]
[1769997060638,1.10053217,2299.3,2297.7,13.14005586]
[1769997060828,0.54628622,2299.2,2297.8,14.45406145]
[1769997061031,0.54628622,2299.2,2297.8,1.31400559]
[1769997061032,0.01324474,2299.1,2297.8,1.31400559]
[1769997061228,0.01324474,2298.4,2297.2,0.001]
[1769997061447,0.01324474,2298.1,2297.2,0.001]
[1769997061658,0.01324474,2297.9,2297.2,0.001]
[1769997062042,0.01434474,2298.3,2297.2,0.001]
[1769997062043,0.0011,2298.3,2297.4,1.08817591]
[1769997062248,0.01434474,2298.3,2297.4,1.08817645]
[1769997062446,0.0011,2298.3,2297.4,1.63240544]
[1769997063062,0.01324474,2298.2,2297.2,1.08926995]
[1769997063262,1.08785518,2298.1,2297.2,0.001]
[1769997063577,1.08785518,2298.1,2297.0,0.001]
[1769997063578,0.01324474,2297.6,2297.0,0.001]
[1769997063758,0.01324474,2297.5,2297.0,0.001]
[1769997064131,0.11564474,2298.0,2297.0,1.0893561]
[1769997064334,1.08785518,2298.1,2297.0,1.0893561]
[1769997064533,1.08890409,2298.3,2297.0,14.22941196]
[1769997064830,1.08890409,2298.3,2297.0,15.14141196]
[1769997065165,0.01324474,2298.1,2297.0,2.0013561]
[1769997065333,1.08780784,2298.2,2297.0,2.63694773]
[1769997065657,0.0011,2298.3,2297.0,15.77700359]
[1769997065860,1.0888662,2298.3,2297.0,15.77700359]
[1769997066086,1.08886719,2298.3,2297.0,15.77700359]
[1769997066275,1.63429259,2298.3,2297.1,1.23909605]
[1769997066438,0.5465254,2298.3,2297.1,1.23909605]
[1769997066775,1.63428629,2298.3,2297.1,14.37915191]
[1769997066964,0.01324474,2298.2,2297.0,2.0013561]
[1769997067265,1.08794986,2297.9,2297.0,2.0013561]
[1769997067469,1.1011946,2297.9,2297.0,0.001]
[1769997067663,1.1011946,2297.9,2297.0,1.08936491]
[1769997067664,0.01324474,2297.8,2297.0,1.08936491]
[1769997067963,0.54794835,2297.8,2297.0,1.08936491]
[1769997068669,0.5465254,2298.3,2297.0,13.81698551]
[1769997068973,0.0011,2298.3,2297.0,13.81698551]
[1769997069330,1.08886519,2298.3,2297.0,13.81698551]
[1769997069532,0.01324474,2297.9,2297.0,1.08935616]
[1769997069738,0.01324474,2298.1,2297.0,1.08935616]
[1769997069962,0.01324474,2298.2,2297.0,1.08935616]
[1769997070458,1.10210993,2298.3,2297.0,1.08935616]
[1769997070662,0.01324474,2298.0,2297.0,0.001]
[1769997070977,1.08886519,2298.3,2297.0,1.08937018]
[1769997071182,1.08886519,2298.3,2297.0,13.81699078]
[1769997071183,1.10210993,2298.3,2297.0,13.81699078]
[1769997071379,0.54663967,2298.2,2297.0,13.81699078]
[1769997071533,1.08886519,2298.3,2297.0,13.81699078]
[1769997071865,0.0011,2298.3,2297.0,13.81699078]
[1769997072167,0.0011,2298.3,2297.1,12.7276206]
[1769997072470,0.0011,2298.5,2297.2,12.7276206]
[1769997072635,0.0011,2298.5,2297.4,12.7276206]
[1769997072837,0.0011,2298.5,2297.6,12.7276206]
[1769997073349,0.0011,2298.5,2297.7,1.08804456]
[1769997074374,4.36273794,2299.2,2297.7,13.81566516]
[1769997074663,1.08733472,2299.2,2297.7,13.81566516]
[1769997074867,0.01324474,2299.0,2297.8,0.60192562]
[1769997075068,0.0011,2298.3,2297.7,1.08804456]
[1769997075370,0.0011,2298.3,2297.6,2.00008452]
[1769997076065,0.0011,2298.3,2297.4,0.912]
[1769997076266,0.0011,2298.3,2297.5,1.08810458]
[1769997076472,0.01324474,2298.1,2297.2,0.001]
[1769997076674,0.01324474,2297.8,2297.2,0.001]
[1769997077042,0.01324474,2297.9,2297.2,0.001]
[1769997077241,0.01324474,2298.1,2297.2,0.001]
[1769997077541,0.01324474,2297.8,2297.2,0.001]
[1769997077766,0.56119309,2297.8,2297.2,0.001]
[1769997077979,0.01324474,2297.6,2297.0,0.001]
[1769997078179,0.01324474,2297.3,2296.8,0.001]
[1769997078353,0.01324474,2297.1,2296.2,1.08972736]
[1769997079077,0.01324474,2296.9,2296.2,0.001]
[1769997079383,1.08832876,2297.1,2296.2,0.001]
[1769997079597,0.54548885,2297.0,2296.2,0.001]
[1769997079772,4.35281471,2297.4,2296.2,0.001]
[1769997079944,4.36605945,2297.4,2296.2,0.001]
[1769997080862,0.01324474,2297.2,2296.2,0.001]
[1769997081040,0.01324474,2297.1,2296.2,0.001]
[1769997081371,1.0885183,2296.7,2296.2,0.001]
[1769997081551,0.54558363,2296.6,2296.2,0.001]
[1769997081751,0.54558363,2296.6,2295.8,0.001]
[1769997081752,0.01324474,2296.5,2295.8,0.001]
[1769997082172,0.01324474,2296.4,2295.8,0.001]
[1769997082354,0.01324474,2296.3,2295.3,1.08914771]
[1769997082555,0.01324474,2296.2,2295.2,2.00118863]
[1769997082749,0.01324474,2296.2,2295.4,1.08913448]
[1769997082973,0.01324474,2296.5,2295.4,1.08910235]
[1769997083272,0.01324474,2296.4,2295.4,1.0891292]
[1769997083449,1.08870792,2296.3,2295.3,1.08918224]
[1769997083649,1.08864061,2296.5,2295.3,1.08918224]
[1769997083851,1.08853954,2296.7,2295.3,13.81680284]
[1769997084149,0.01324474,2297.0,2295.3,13.81680284]
[1769997084150,4.35372625,2296.9,2295.3,13.81680284]
[1769997084356,0.01324474,2296.7,2295.3,1.08918224]
[1769997084543,0.01324474,2296.5,2295.3,1.08918224]
[1769997084745,0.01324474,2296.8,2295.3,1.08918224]
[1769997084959,0.01324474,2296.6,2295.3,1.08918224]
[1769997085383,1.08866051,2296.4,2295.2,2.00119599]
[1769997085569,0.01324474,2296.3,2295.2,2.00119599]
[1769997085775,0.54830368,2296.3,2295.2,2.00119599]
[1769997086988,0.54830368,2296.3,2295.2,14.72881659]
[1769997087204,1.0884942,2296.8,2295.2,14.72881659]
[1769997087358,4.35335766,2297.1,2295.2,14.74206133]
[1769997087765,2.00025994,2297.3,2295.6,12.7276206]
[1769997088066,1.08812031,2297.6,2296.0,12.7276206]
[1769997088370,1.68695728,2297.6,2296.2,12.7276206]
[1769997088594,0.01324474,2297.4,2296.1,0.913]
[1769997088868,0.0011,2297.0,2296.2,14.5]
[1769997089063,0.0011,2297.0,2296.1,13.6406206]
[1769997089260,0.0011,2297.0,2296.2,1.36406206]
[1769997089462,0.0011,2297.0,2296.2,2.45278477]
[1769997090085,0.0011,2297.0,2296.2,1.36406206]
[1769997090289,0.0011,2297.0,2296.1,0.913]
[1769997090488,0.0011,2297.0,2296.2,1.08874612]
[1769997093563,0.0011,2297.0,2296.1,1.08877002]
[1769997093768,0.0011,2297.0,2296.2,0.913]
[1769997095262,0.0011,2297.0,2296.0,1.0888175]
[1769997095504,0.01324474,2296.7,2295.6,1.08900807]
[1769997095708,0.01324474,2296.7,2295.5,2.00305179]
[1769997095709,0.01324474,2296.5,2295.5,2.00305179]
[1769997095890,0.01324474,2296.4,2295.5,0.001]
[1769997096096,0.01324474,2296.3,2295.5,0.001]
[1769997096883,0.45130101,2296.7,2295.5,0.001]
[1769997096884,1.08847091,2296.8,2295.7,1.0889878]
[1769997097095,0.0011,2297.0,2295.8,0.54449576]
[1769997097301,0.0011,2297.0,2295.8,13.27211636]
[1769997097484,0.0011,2297.0,2296.0,12.7276206]
[1769997097671,0.0011,2297.0,2296.1,0.913]
[1769997097879,0.0011,2297.0,2296.2,14.5]
[1769997098088,0.0011,2297.0,2296.3,1.33019192]
[1769997098376,1.08903531,2298.0,2296.3,14.0584413]
[1769997098596,0.0011,2298.0,2296.3,14.0584413]
[1769997098791,0.0011,2298.0,2296.5,12.74149412]
[1769997098990,1.08900459,2298.0,2296.5,12.74149412]
[1769997099174,1.08900459,2298.0,2296.6,0.54449576]
[1769997099369,1.08900459,2298.0,2296.7,0.913]
[1769997099576,0.0011,2298.0,2296.8,15.58847091]
[1769997100097,0.0011,2298.0,2296.9,12.72824938]
[1769997100773,0.0011,2298.0,2297.1,12.72824938]
[1769997101071,0.0011,2298.3,2297.2,14.0584413]
[1769997101275,0.0011,2298.3,2297.3,13.64124938]
[1769997101686,0.0011,2298.3,2297.5,1.08813928]
[1769997102302,0.0011,2298.5,2297.5,13.81638866]
[1769997102475,0.0011,2298.5,2297.7,12.72824938]
[1769997102672,1.08736938,2299.2,2297.8,0.54449576]
[1769997102891,1.0872751,2299.4,2297.9,13.64024938]
[1769997103097,1.08831886,2299.5,2297.9,13.64024938]
[1769997103283,1.08830288,2299.5,2297.9,13.64024938]
[1769997103482,1.08830288,2299.5,2297.8,0.54449576]
[1769997103483,1.08832347,2299.5,2298.1,12.72824938]
[1769997103707,1.08728743,2299.3,2298.2,2.41798369]
[1769997103904,1.10053217,2299.3,2298.3,0.912]
[1769997104200,0.01324474,2299.2,2298.3,0.912]
[1769997104373,1.08728743,2299.3,2298.3,0.912]
[1769997104579,0.59947021,2299.2,2298.3,0.912]
[1769997105206,0.0011,2299.5,2298.3,0.912]
[1769997105780,0.0011,2299.5,2298.4,1.08771319]
[1769997106104,0.01324474,2299.4,2298.3,1.08774752]
[1769997106411,0.01324474,2299.1,2298.3,1.08774875]
[1769997106700,0.01324474,2299.1,2298.3,1.08775621]
[1769997106901,0.01324474,2299.2,2298.3,1.08775621]
[1769997107205,0.0011,2299.5,2298.3,2.54367015]
[1769997107374,0.01434474,2299.5,2298.3,2.54367015]
[1769997107575,0.01434474,2299.5,2298.4,14.5]
[1769997107891,1.10053217,2299.3,2298.5,1.08766586]
[1769997108089,1.08728743,2299.3,2298.5,1.08766586]
[1769997108498,0.01434474,2299.5,2298.5,1.08766586]
[1769997108499,0.0011,2299.5,2298.5,15.58766586]
[1769997108709,1.08829519,2299.5,2298.5,15.58766586]
[1769997108879,1.63330019,2299.5,2298.5,15.58766586]
[1769997109081,1.63330931,2299.5,2298.5,14.5]
[1769997109404,0.01324474,2299.1,2298.4,1.0876899]
[1769997109803,1.10067046,2299.1,2298.3,1.9997248]
[1769997110199,1.08731732,2299.3,2298.3,1.9997248]
[1769997110402,0.01324474,2299.0,2298.2,1.08778066]
[1769997110598,0.01324474,2298.9,2298.3,1.08775391]
[1769997110904,0.01324474,2298.9,2298.2,1.08778035]
[1769997111096,0.01324474,2299.0,2298.2,1.08778035]
[1769997111295,0.01324474,2299.1,2298.3,1.08775297]
[1769997111910,1.08738201,2299.1,2298.2,1.08780784]
[1769997112211,0.01324474,2299.2,2298.3,0.63511916]
[1769997112411,0.01324474,2299.2,2298.2,1.08780784]
[1769997113916,1.08738201,2299.1,2298.1,4.35138376]
[1769997114212,0.01324474,2299.1,2298.1,4.35138376]
[1769997114410,0.01324474,2299.0,2298.1,18.85138376]
[1769997114595,0.0011,2298.8,2298.1,18.85138376]
[1769997115305,0.0011,2298.8,2298.0,1.99988142]
[1769997115888,0.0011,2298.8,2298.0,15.3298087]
[1769997116140,0.0011,2299.0,2298.0,15.3298087]
[1769997118315,0.0011,2299.5,2298.1,0.912]
[1769997118528,0.01324474,2298.8,2298.1,0.912]
[1769997118701,0.01324474,2298.7,2298.1,0.912]
[1769997119022,0.01324474,2298.9,2298.1,0.912]
[1769997119389,0.01324474,2298.7,2298.1,0.912]
[1769997119590,0.01324474,2298.7,2297.5,2.00010207]
[1769997119591,0.01324474,2298.4,2297.5,2.00010207]
[1769997119792,0.01324474,2298.0,2297.5,0.912]
[1769997120003,1.1011946,2297.9,2297.5,0.912]
[1769997120204,0.01324474,2297.8,2297.0,1.08835656]
[1769997120436,0.01324474,2297.6,2296.9,0.912]
[1769997120726,0.54793037,2297.9,2297.3,4.35287829]
[1769997120894,4.46592968,2298.8,2297.5,1.08813382]
[1769997121090,1.0875091,2298.9,2297.6,0.912]
[1769997121613,1.08736739,2299.2,2297.6,14.24192728]
[1769997122011,0.0011,2299.5,2297.8,13.32992728]
[1769997122210,0.0011,2299.5,2298.1,0.01324474]
[1769997122436,0.0011,2299.5,2298.2,13.34317202]
[1769997122607,0.0011,2301.1,2299.0,13.32992728]
[1769997122803,1.0875626,2301.1,2299.2,13.32992728]
[1769997123028,0.0011,2301.1,2299.2,13.32992728]
[1769997123234,0.01434474,2301.5,2300.1,13.32992728]
[1769997123235,0.0011,2301.5,2300.1,13.32992728]
[1769997123415,1.08735573,2301.5,2300.2,15.57624448]
[1769997123615,1.08735573,2301.5,2300.2,2.2463172]
[1769997123816,1.08735573,2301.5,2300.2,0.912]
[1769997124016,1.08735573,2301.5,2299.7,13.32992728]
[1769997124017,1.08643692,2301.1,2300.0,0.912]
[1769997124226,1.08642202,2301.2,2300.0,0.912]
[1769997124433,5.30498274,2301.1,2299.1,13.32992728]
[1769997124633,0.01324474,2300.9,2299.2,0.912]
[1769997124808,0.64046495,2301.0,2299.7,1.08708128]
[1769997125009,0.1024,2301.1,2299.7,1.08708128]
[1769997125331,0.1024,2301.1,2299.3,1.42419273]
[1769997125332,0.01324474,2300.7,2299.3,1.42419273]
[1769997125538,0.1024,2300.5,2298.6,13.32992728]
[1769997125707,0.01324474,2300.9,2299.7,1.08709711]
[1769997125909,0.01324474,2300.9,2298.8,0.01324474]
[1769997125910,1.0866258,2300.7,2299.0,4.34957755]
[1769997126108,0.01324474,2300.5,2299.0,1.08742931]
[1769997126526,1.09987054,2300.7,2299.0,14.43060133]
[1769997126527,1.0866258,2300.7,2299.0,14.43060133]
[1769997126732,1.08660565,2300.8,2299.1,13.34317202]
[1769997126914,1.08660565,2300.8,2299.2,0.01324474]
[1769997127128,1.09985039,2300.8,2299.1,13.32992728]
[1769997127329,0.0011,2299.3,2299.1,13.32992728]
[1769997127512,0.0011,2299.3,2299.0,1.08742931]
[1769997127708,0.01324474,2300.7,2299.1,0.912]
[1769997127909,0.54724986,2300.7,2299.1,13.63023223]
[1769997128121,1.08631272,2301.4,2299.5,12.73147697]
[1769997128317,1.08738173,2301.5,2299.7,12.73147697]
[1769997128654,0.0011,2300.5,2299.8,12.73147697]
[1769997128841,0.0011,2301.5,2299.9,14.91794914]
[1769997128842,1.08735811,2301.5,2299.9,14.91794914]
[1769997129026,1.08735101,2301.5,2299.9,13.9927044]
[1769997129226,1.08735101,2301.5,2300.0,0.912]
[1769997129227,0.01324474,2301.2,2300.0,0.912]
[1769997129630,0.01324474,2301.1,2300.0,0.912]
[1769997129837,0.01324474,2301.0,2300.0,0.912]
[1769997130133,1.08653135,2300.9,2300.0,1.998954]
[1769997130312,0.54459015,2300.8,2300.0,0.912]
[1769997130518,0.54459015,2300.8,2300.0,1.99895341]
[1769997130735,1.10064003,2301.5,2300.0,1.99895341]
[1769997130940,4.34537,2301.4,2300.0,1.99895341]
[1769997131245,0.0011,2301.5,2300.1,0.2335703]
[1769997131446,0.0011,2301.5,2300.2,12.73147697]
[1769997131657,0.0011,2301.5,2300.3,1.27447217]
[1769997131867,1.08737053,2301.5,2300.3,1.27447217]
[1769997132024,1.08737053,2301.5,2300.4,0.911]
[1769997132230,0.0011,2301.5,2300.5,1.08672027]
[1769997132539,0.0011,2301.5,2300.5,13.8049525]
[1769997132743,0.30456344,2302.2,2301.2,12.73147697]